[Event "Titled Tuesday Blitz August 17 2021"]
[White "Khabinets, Ivan"]
[Black "Gedgafov, Chamal"]
[WhiteFideId "14115980"]
[BlackFideId "34130621"]
[WhiteElo "2114"]
[BlackElo "2005"]
[Result "1-0"]
[Round "09"]
[TimeControl "180+1"]
[Date "2021.08.18"]
[WhiteClock "0:00:08"]
[BlackClock "0:00:01"]

1. e4 {[%clk 0:03:00]}  e6 {[%clk 0:02:58]} 2. d4 {[%clk 0:03:00]}  d5 {[%clk 0:02:58]} 3. e5 {[%clk 0:03:01]}  c5 {[%clk 0:02:58]} 4. c3 {[%clk 0:03:02]}  Qb6 {[%clk 0:02:58]} 5. Nf3 {[%clk 0:03:02]}  Nc6 {[%clk 0:02:58]} 6. Bd3 {[%clk 0:03:02]}  cxd4 {[%clk 0:02:57]} 7. cxd4 {[%clk 0:03:03]}  Bd7 {[%clk 0:02:57]} 8. O-O {[%clk 0:03:03]}  Nxd4 {[%clk 0:02:57]} 9. Nbd2 {[%clk 0:03:03]}  Nxf3+ {[%clk 0:02:54]} 10. Nxf3 {[%clk 0:03:04]}  Bc5 {[%clk 0:02:50]} 11. a3 {[%clk 0:03:04]}  a5 {[%clk 0:02:49]} 12. Qe2 {[%clk 0:02:58]}  Ne7 {[%clk 0:02:44]} 13. Bg5 {[%clk 0:02:57]}  h6 {[%clk 0:02:40]} 14. Bf4 {[%clk 0:02:50]}  Ng6 {[%clk 0:02:33]} 15. Bg3 {[%clk 0:02:46]}  a4 {[%clk 0:02:26]} 16. Rfc1 {[%clk 0:02:44]}  O-O {[%clk 0:02:23]} 17. h4 {[%clk 0:02:29]}  Rfc8 {[%clk 0:02:14]} 18. Rc2 {[%clk 0:02:11]}  Bd4 {[%clk 0:01:56]} 19. h5 {[%clk 0:02:07]}  Ne7 {[%clk 0:01:51]} 20. Rd2 {[%clk 0:02:00]}  Bc5 {[%clk 0:01:42]} 21. Bc2 {[%clk 0:01:54]}  Bb5 {[%clk 0:01:31]} 22. Qd1 {[%clk 0:01:54]}  Bc4 {[%clk 0:01:21]} 23. Bh4 {[%clk 0:01:45]}  Bb3 {[%clk 0:01:16]} 24. Bxb3 {[%clk 0:01:45]}  axb3 {[%clk 0:01:16]} 25. Rd3 {[%clk 0:01:31]}  Nf5 {[%clk 0:01:12]} 26. Rxb3 {[%clk 0:01:31]}  Qa7 {[%clk 0:01:11]} 27. Qe2 {[%clk 0:01:28]}  Nd4 {[%clk 0:01:03]} 28. Nxd4 {[%clk 0:01:26]}  Bxd4 {[%clk 0:01:03]} 29. Bg3 {[%clk 0:01:24]}  Rc4 {[%clk 0:01:02]} 30. Rd3 {[%clk 0:01:18]}  Rac8 {[%clk 0:01:02]} 31. Rd2 {[%clk 0:01:18]}  Qb6 {[%clk 0:00:55]} 32. Rad1 {[%clk 0:01:18]}  Bc5 {[%clk 0:00:48]} 33. Kh2 {[%clk 0:01:13]}  Be7 {[%clk 0:00:47]} 34. f4 {[%clk 0:01:05]}  Qb3 {[%clk 0:00:37]} 35. Bf2 {[%clk 0:01:03]}  Rc2 {[%clk 0:00:35]} 36. Rxc2 {[%clk 0:00:56]}  Rxc2 {[%clk 0:00:35]} 37. Rd2 {[%clk 0:00:57]}  Rc4 {[%clk 0:00:29]} 38. g3 {[%clk 0:00:57]}  b5 {[%clk 0:00:28]} 39. Kg2 {[%clk 0:00:53]}  b4 {[%clk 0:00:27]} 40. axb4 {[%clk 0:00:48]}  Bxb4 {[%clk 0:00:28]} 41. Rd3 {[%clk 0:00:49]}  Qc2 {[%clk 0:00:26]} 42. Qxc2 {[%clk 0:00:05]}  Rxc2 {[%clk 0:00:27]} 43. b3 {[%clk 0:00:05]}  Be1 {[%clk 0:00:25]} 44. Rf3 {[%clk 0:00:03]}  Rb2 {[%clk 0:00:24]} 45. Kf1 {[%clk 0:00:03]}  Bxf2 {[%clk 0:00:24]} 46. Rxf2 {[%clk 0:00:04]}  Rxb3 {[%clk 0:00:24]} 47. Kg2 {[%clk 0:00:04]}  Kf8 {[%clk 0:00:23]} 48. Ra2 {[%clk 0:00:04]}  Rb7 {[%clk 0:00:22]} 49. Ra8+ {[%clk 0:00:05]}  Ke7 {[%clk 0:00:23]} 50. Rg8 {[%clk 0:00:05]}  Rb2+ {[%clk 0:00:19]} 51. Kf3 {[%clk 0:00:06]}  Rb3+ {[%clk 0:00:18]} 52. Kf2 {[%clk 0:00:06]}  d4 {[%clk 0:00:17]} 53. Rxg7 {[%clk 0:00:06]}  Re3 {[%clk 0:00:15]} 54. Rg4 {[%clk 0:00:04]}  Re4 {[%clk 0:00:14]} 55. Rh4 {[%clk 0:00:04]}  d3 {[%clk 0:00:14]} 56. Rh1 {[%clk 0:00:04]}  f6 {[%clk 0:00:11]} 57. exf6+ {[%clk 0:00:04]}  Kxf6 {[%clk 0:00:11]} 58. Rd1 {[%clk 0:00:05]}  Rd4 {[%clk 0:00:11]} 59. Ke3 {[%clk 0:00:05]}  Rd5 {[%clk 0:00:10]} 60. Ke4 {[%clk 0:00:03]}  d2 {[%clk 0:00:09]} 61. g4 {[%clk 0:00:03]}  Rd7 {[%clk 0:00:08]} 62. Ke3 {[%clk 0:00:04]}  e5 {[%clk 0:00:06]} 63. f5 {[%clk 0:00:02]}  Kg5 {[%clk 0:00:06]} 64. Rxd2 {[%clk 0:00:02]}  Re7 {[%clk 0:00:03]} 65. Rg2 {[%clk 0:00:02]}  e4 {[%clk 0:00:03]} 66. Rg1 {[%clk 0:00:03]}  Re8 {[%clk 0:00:02]} 67. Rg2 {[%clk 0:00:03]}  Re7 {[%clk 0:00:03]} 68. Kd4 {[%clk 0:00:02]}  Re8 {[%clk 0:00:03]} 69. Rg3 {[%clk 0:00:02]}  Re7 {[%clk 0:00:02]} 70. Rg1 {[%clk 0:00:02]}  Re8 {[%clk 0:00:02]} 71. Rf1 {[%clk 0:00:03]}  Re7 {[%clk 0:00:02]} 72. f6 {[%clk 0:00:04]}  Rf7 {[%clk 0:00:02]} 73. Kxe4 {[%clk 0:00:04]}  Kxg4 {[%clk 0:00:02]} 74. Rg1+ {[%clk 0:00:04]}  Kxh5 {[%clk 0:00:02]} 75. Kf5 {[%clk 0:00:05]}  Kh4 {[%clk 0:00:02]} 76. Rh1+ {[%clk 0:00:05]}  Kg3 {[%clk 0:00:02]} 77. Rxh6 {[%clk 0:00:06]}  Rf8 {[%clk 0:00:03]} 78. Rg6+ {[%clk 0:00:05]}  Kf3 {[%clk 0:00:02]} 79. Rg7 {[%clk 0:00:06]}  Rb8 {[%clk 0:00:02]} 80. f7 {[%clk 0:00:06]}  Rb5+ {[%clk 0:00:02]} 81. Kg6 {[%clk 0:00:07]}  Rb6+ {[%clk 0:00:02]} 82. Kh7 {[%clk 0:00:08]}  Rb8 {[%clk 0:00:02]} 83. Rg8 {[%clk 0:00:08]}  Rf8 {[%clk 0:00:01]} 84. Rxf8 {[%clk 0:00:08]} 1-0


[Site "https://www.chess.com"]

[Event "Titled Tuesday Blitz August 17 2021"]
[White "Khumalo, Keith"]
[Black "Gracia Alvarez, Gerardo Antonio"]
[WhiteFideId "14319470"]
[BlackFideId "5109124"]
[WhiteElo "1992"]
[BlackElo "2148"]
[Result "0-1"]
[Round "09"]
[TimeControl "180+1"]
[Date "2021.08.17"]
[WhiteClock "0:00:30"]
[BlackClock "0:00:03"]

1. d4 {[%clk 0:03:00]}  Nf6 {[%clk 0:02:59]} 2. c4 {[%clk 0:03:01]}  c5 {[%clk 0:03:00]} 3. d5 {[%clk 0:03:01]}  b5 {[%clk 0:03:00]} 4. Qc2 {[%clk 0:03:01]}  b4 {[%clk 0:02:59]} 5. e4 {[%clk 0:03:02]}  d6 {[%clk 0:02:59]} 6. b3 {[%clk 0:03:03]}  g6 {[%clk 0:02:59]} 7. Bb2 {[%clk 0:03:04]}  Bg7 {[%clk 0:02:59]} 8. f4 {[%clk 0:03:05]}  O-O {[%clk 0:02:58]} 9. Nf3 {[%clk 0:03:05]}  e6 {[%clk 0:02:58]} 10. dxe6 {[%clk 0:03:05]}  Bxe6 {[%clk 0:02:55]} 11. Be2 {[%clk 0:03:04]}  Nc6 {[%clk 0:02:52]} 12. Nbd2 {[%clk 0:03:03]}  Re8 {[%clk 0:02:45]} 13. O-O {[%clk 0:03:03]}  Qc7 {[%clk 0:02:27]} 14. Rad1 {[%clk 0:02:57]}  Rad8 {[%clk 0:02:26]} 15. f5 {[%clk 0:02:49]}  Bxf5 {[%clk 0:02:20]} 16. exf5 {[%clk 0:02:46]}  Rxe2 {[%clk 0:02:20]} 17. fxg6 {[%clk 0:02:47]}  hxg6 {[%clk 0:02:17]} 18. Qd3 {[%clk 0:02:36]}  Rde8 {[%clk 0:02:10]} 19. Ng5 {[%clk 0:02:33]}  Nd4 {[%clk 0:02:00]} 20. Bxd4 {[%clk 0:02:28]}  cxd4 {[%clk 0:02:01]} 21. Ndf3 {[%clk 0:02:18]}  Ng4 {[%clk 0:01:38]} 22. Nxd4 {[%clk 0:02:09]}  Rxa2 {[%clk 0:01:37]} 23. Qh3 {[%clk 0:02:04]}  Nh6 {[%clk 0:00:57]} 24. Kh1 {[%clk 0:02:01]}  Qc5 {[%clk 0:00:51]} 25. Qd7 {[%clk 0:01:50]}  Rf8 {[%clk 0:00:46]} 26. Ne4 {[%clk 0:01:32]}  Qe5 {[%clk 0:00:42]} 27. Nxd6 {[%clk 0:01:23]}  Qg5 {[%clk 0:00:29]} 28. Qh3 {[%clk 0:01:12]}  Ng4 {[%clk 0:00:19]} 29. Nf3 {[%clk 0:01:09]}  Qh5 {[%clk 0:00:16]} 30. Qxh5 {[%clk 0:01:00]}  gxh5 {[%clk 0:00:17]} 31. Rd2 {[%clk 0:01:00]}  Rxd2 {[%clk 0:00:16]} 32. Nxd2 {[%clk 0:01:00]}  Rd8 {[%clk 0:00:17]} 33. N2e4 {[%clk 0:01:01]}  Ne3 {[%clk 0:00:14]} 34. Rxf7 {[%clk 0:00:57]}  Be5 {[%clk 0:00:10]} 35. Rf3 {[%clk 0:00:49]}  Ng4 {[%clk 0:00:10]} 36. Rd3 {[%clk 0:00:44]}  Bxd6 {[%clk 0:00:08]} 37. Rxd6 {[%clk 0:00:44]}  Re8 {[%clk 0:00:07]} 38. h3 {[%clk 0:00:42]}  Rxe4 {[%clk 0:00:06]} 39. hxg4 {[%clk 0:00:43]}  hxg4 {[%clk 0:00:06]} 40. Rd8+ {[%clk 0:00:43]}  Kf7 {[%clk 0:00:06]} 41. Rd7+ {[%clk 0:00:44]}  Ke6 {[%clk 0:00:06]} 42. Rxa7 {[%clk 0:00:44]}  g3 {[%clk 0:00:06]} 43. Ra1 {[%clk 0:00:41]}  Re3 {[%clk 0:00:07]} 44. Rb1 {[%clk 0:00:41]}  Ke5 {[%clk 0:00:07]} 45. Kg1 {[%clk 0:00:42]}  Re2 {[%clk 0:00:05]} 46. Kf1 {[%clk 0:00:42]}  Rf2+ {[%clk 0:00:06]} 47. Kg1 {[%clk 0:00:41]}  Kd4 {[%clk 0:00:06]} 48. Rf1 {[%clk 0:00:39]}  Rb2 {[%clk 0:00:05]} 49. Rc1 {[%clk 0:00:36]}  Kc5 {[%clk 0:00:03]} 50. Kf1 {[%clk 0:00:36]}  Rxb3 {[%clk 0:00:03]} 51. Ke2 {[%clk 0:00:37]}  Rc3 {[%clk 0:00:04]} 52. Rh1 {[%clk 0:00:35]}  Rxc4 {[%clk 0:00:03]} 53. Rh5+ {[%clk 0:00:35]}  Kd4 {[%clk 0:00:04]} 54. Rg5 {[%clk 0:00:33]}  Rc2+ {[%clk 0:00:03]} 55. Kf3 {[%clk 0:00:34]}  Rc3+ {[%clk 0:00:03]} 56. Kf4 {[%clk 0:00:33]}  b3 {[%clk 0:00:03]} 57. Rg8 {[%clk 0:00:33]}  Kd3 {[%clk 0:00:03]} 58. Kxg3 {[%clk 0:00:32]}  Kc2+ {[%clk 0:00:04]} 59. Kf4 {[%clk 0:00:33]}  b2 {[%clk 0:00:04]} 60. Rb8 {[%clk 0:00:31]}  Rb3 {[%clk 0:00:05]} 61. Rc8+ {[%clk 0:00:31]}  Kd2 {[%clk 0:00:05]} 62. Rd8+ {[%clk 0:00:31]}  Ke2 {[%clk 0:00:05]} 63. Re8+ {[%clk 0:00:30]}  Kf2 {[%clk 0:00:03]} 64. g4 {[%clk 0:00:30]}  b1=Q {[%clk 0:00:03]} 0-1


[Site "https://www.chess.com"]

[Event "Titled Tuesday Blitz August 17 2021"]
[White "Kiseljova, Marya"]
[Black "Lamotte Tavares, Patrick"]
[WhiteFideId "4155009"]
[BlackFideId "5120950"]
[WhiteElo "1814"]
[BlackElo "1915"]
[Result "1-0"]
[Round "09"]
[TimeControl "180+1"]
[Date "2021.08.18"]
[WhiteClock "0:00:06"]
[BlackClock "0:00:20"]

1. d4 {[%clk 0:03:00]}  Nf6 {[%clk 0:02:59]} 2. Bf4 {[%clk 0:03:00]}  g6 {[%clk 0:02:57]} 3. Nc3 {[%clk 0:03:00]}  d5 {[%clk 0:02:54]} 4. e3 {[%clk 0:02:58]}  Bg7 {[%clk 0:02:52]} 5. h4 {[%clk 0:02:58]}  h5 {[%clk 0:02:48]} 6. Be2 {[%clk 0:02:43]}  O-O {[%clk 0:02:37]} 7. Nf3 {[%clk 0:02:40]}  Bg4 {[%clk 0:02:26]} 8. Ne5 {[%clk 0:02:39]}  Bxe2 {[%clk 0:02:25]} 9. Qxe2 {[%clk 0:02:39]}  Nbd7 {[%clk 0:02:22]} 10. f3 {[%clk 0:02:34]}  c5 {[%clk 0:02:17]} 11. O-O-O {[%clk 0:02:25]}  cxd4 {[%clk 0:02:12]} 12. exd4 {[%clk 0:02:23]}  Nb6 {[%clk 0:02:12]} 13. Qd2 {[%clk 0:02:13]}  Rc8 {[%clk 0:02:09]} 14. g4 {[%clk 0:02:11]}  Nc4 {[%clk 0:01:58]} 15. Nxc4 {[%clk 0:02:10]}  Rxc4 {[%clk 0:01:59]} 16. g5 {[%clk 0:01:45]}  Ne8 {[%clk 0:01:27]} 17. Qe3 {[%clk 0:01:37]}  e6 {[%clk 0:01:18]} 18. Be5 {[%clk 0:01:12]}  Bxe5 {[%clk 0:01:07]} 19. Qxe5 {[%clk 0:01:13]}  Nd6 {[%clk 0:00:59]} 20. Ne2 {[%clk 0:00:47]}  Nf5 {[%clk 0:00:55]} 21. c3 {[%clk 0:00:46]}  b5 {[%clk 0:00:54]} 22. Nf4 {[%clk 0:00:40]}  Qb6 {[%clk 0:00:36]} 23. Kd2 {[%clk 0:00:24]}  b4 {[%clk 0:00:35]} 24. Rb1 {[%clk 0:00:17]}  Qa6 {[%clk 0:00:17]} 25. Ra1 {[%clk 0:00:13]}  bxc3+ {[%clk 0:00:17]} 26. bxc3 {[%clk 0:00:13]}  Rfc8 {[%clk 0:00:17]} 27. Rhc1 {[%clk 0:00:12]}  Qa5 {[%clk 0:00:16]} 28. Nxe6 {[%clk 0:00:10]}  fxe6 {[%clk 0:00:16]} 29. Qxe6+ {[%clk 0:00:10]}  Kh7 {[%clk 0:00:17]} 30. Qf7+ {[%clk 0:00:10]}  Ng7 {[%clk 0:00:17]} 31. Re1 {[%clk 0:00:03]}  Rxd4+ {[%clk 0:00:17]} 32. Ke3 {[%clk 0:00:02]}  Qxc3+ {[%clk 0:00:16]} 33. Kf2 {[%clk 0:00:03]}  Rd2+ {[%clk 0:00:17]} 34. Kg3 {[%clk 0:00:03]}  Rd3 {[%clk 0:00:17]} 35. Re7 {[%clk 0:00:02]}  Rxf3+ {[%clk 0:00:17]} 36. Qxf3 {[%clk 0:00:02]}  Qxf3+ {[%clk 0:00:18]} 37. Kxf3 {[%clk 0:00:02]}  Rc4 {[%clk 0:00:18]} 38. Rd1 {[%clk 0:00:01]}  Rxh4 {[%clk 0:00:18]} 39. Rd7 {[%clk 0:00:01]}  Rg4 {[%clk 0:00:18]} 40. R1xd5 {[%clk 0:00:01]}  Ra4 {[%clk 0:00:17]} 41. Re5 {[%clk 0:00:02]}  Ra3+ {[%clk 0:00:17]} 42. Ke4 {[%clk 0:00:01]}  Ra4+ {[%clk 0:00:16]} 43. Kd3 {[%clk 0:00:02]}  h4 {[%clk 0:00:16]} 44. Ree7 {[%clk 0:00:02]}  h3 {[%clk 0:00:14]} 45. Rxg7+ {[%clk 0:00:02]}  Kh8 {[%clk 0:00:14]} 46. Rh7+ {[%clk 0:00:02]}  Kg8 {[%clk 0:00:15]} 47. Rhg7+ {[%clk 0:00:02]}  Kf8 {[%clk 0:00:15]} 48. Rh7 {[%clk 0:00:03]}  Kg8 {[%clk 0:00:14]} 49. Rdg7+ {[%clk 0:00:03]}  Kf8 {[%clk 0:00:14]} 50. Rxg6 {[%clk 0:00:03]}  Ra3+ {[%clk 0:00:14]} 51. Kc4 {[%clk 0:00:03]}  a5 {[%clk 0:00:14]} 52. Rd6 {[%clk 0:00:03]}  Ra4+ {[%clk 0:00:15]} 53. Kb5 {[%clk 0:00:03]}  Rg4 {[%clk 0:00:15]} 54. Kxa5 {[%clk 0:00:04]}  Rxg5+ {[%clk 0:00:15]} 55. Kb6 {[%clk 0:00:04]}  Kg8 {[%clk 0:00:15]} 56. Rc7 {[%clk 0:00:03]}  Rf5 {[%clk 0:00:15]} 57. Rd8+ {[%clk 0:00:03]}  Rf8 {[%clk 0:00:15]} 58. Rxf8+ {[%clk 0:00:03]}  Kxf8 {[%clk 0:00:16]} 59. Rc3 {[%clk 0:00:03]}  Kf7 {[%clk 0:00:16]} 60. Rxh3 {[%clk 0:00:04]}  Ke6 {[%clk 0:00:17]} 61. a4 {[%clk 0:00:04]}  Kf5 {[%clk 0:00:18]} 62. a5 {[%clk 0:00:04]}  Kg4 {[%clk 0:00:18]} 63. Rb3 {[%clk 0:00:05]}  Kf4 {[%clk 0:00:19]} 64. Rb5 {[%clk 0:00:05]}  Ke4 {[%clk 0:00:20]} 65. a6 {[%clk 0:00:06]} 1-0


[Site "https://www.chess.com"]

[Event "Titled Tuesday Blitz August 17 2021"]
[White "Kislov, Oleg"]
[Black "Devaev, Alexander"]
[WhiteFideId "13503774"]
[BlackFideId "4169395"]
[WhiteElo "2252"]
[BlackElo "2185"]
[Result "1-0"]
[Round "09"]
[TimeControl "180+1"]
[Date "2021.08.17"]
[WhiteClock "0:00:33"]
[BlackClock "0:00:20"]

1. e4 {[%clk 0:03:00]}  c6 {[%clk 0:02:57]} 2. d4 {[%clk 0:03:00]}  d5 {[%clk 0:02:57]} 3. Nc3 {[%clk 0:02:59]}  dxe4 {[%clk 0:02:57]} 4. Nxe4 {[%clk 0:03:00]}  Nf6 {[%clk 0:02:58]} 5. Nxf6+ {[%clk 0:02:59]}  exf6 {[%clk 0:02:58]} 6. c3 {[%clk 0:02:59]}  Bd6 {[%clk 0:02:59]} 7. Bd3 {[%clk 0:02:57]}  Na6 {[%clk 0:02:59]} 8. Ne2 {[%clk 0:02:49]}  Nc7 {[%clk 0:02:58]} 9. Qc2 {[%clk 0:02:49]}  h5 {[%clk 0:02:57]} 10. Be3 {[%clk 0:02:48]}  Be6 {[%clk 0:02:52]} 11. Nf4 {[%clk 0:02:37]}  Bxf4 {[%clk 0:02:48]} 12. Bxf4 {[%clk 0:02:36]}  Nd5 {[%clk 0:02:49]} 13. Bd2 {[%clk 0:02:33]}  Qd7 {[%clk 0:02:46]} 14. O-O-O {[%clk 0:02:30]}  O-O-O {[%clk 0:02:46]} 15. c4 {[%clk 0:02:24]}  Ne7 {[%clk 0:02:38]} 16. Bc3 {[%clk 0:02:20]}  Bf5 {[%clk 0:02:30]} 17. Rhe1 {[%clk 0:02:17]}  Bxd3 {[%clk 0:02:25]} 18. Qxd3 {[%clk 0:02:17]}  Ng6 {[%clk 0:02:04]} 19. g3 {[%clk 0:02:14]}  h4 {[%clk 0:02:02]} 20. d5 {[%clk 0:02:13]}  hxg3 {[%clk 0:01:49]} 21. hxg3 {[%clk 0:02:10]}  cxd5 {[%clk 0:01:12]} 22. cxd5 {[%clk 0:02:06]}  Kb8 {[%clk 0:01:07]} 23. Kb1 {[%clk 0:01:56]}  Rhe8 {[%clk 0:01:00]} 24. a3 {[%clk 0:01:18]}  Rxe1 {[%clk 0:00:59]} 25. Bxe1 {[%clk 0:01:14]}  Ne7 {[%clk 0:00:53]} 26. d6 {[%clk 0:01:10]}  Nc6 {[%clk 0:00:45]} 27. Bc3 {[%clk 0:01:05]}  Re8 {[%clk 0:00:45]} 28. f4 {[%clk 0:01:02]}  Re6 {[%clk 0:00:36]} 29. Qd5 {[%clk 0:00:57]}  g6 {[%clk 0:00:35]} 30. f5 {[%clk 0:00:52]}  gxf5 {[%clk 0:00:33]} 31. Qxf5 {[%clk 0:00:51]}  Ne5 {[%clk 0:00:32]} 32. Rd5 {[%clk 0:00:36]}  Rxd6 {[%clk 0:00:18]} 33. Qxd7 {[%clk 0:00:34]}  Rxd7 {[%clk 0:00:19]} 34. Bxe5+ {[%clk 0:00:33]}  Kc8 {[%clk 0:00:20]} 35. Rxd7 {[%clk 0:00:33]} 1-0


[Site "https://www.chess.com"]

[Event "Titled Tuesday Blitz August 17 2021"]
[White "Ljukin, Sergei"]
[Black "Potapova, Margarita"]
[WhiteFideId "14102200"]
[BlackFideId "14126869"]
[WhiteElo "2309"]
[BlackElo "2214"]
[Result "0-1"]
[Round "09"]
[TimeControl "180+1"]
[Date "2021.08.17"]
[WhiteClock "0:01:53"]
[BlackClock "0:01:25"]

1. e4 {[%clk 0:02:56]}  c5 {[%clk 0:03:00]} 2. Nf3 {[%clk 0:02:55]}  d6 {[%clk 0:03:01]} 3. d4 {[%clk 0:02:56]}  cxd4 {[%clk 0:03:02]} 4. Nxd4 {[%clk 0:02:56]}  Nf6 {[%clk 0:03:02]} 5. Nc3 {[%clk 0:02:56]}  a6 {[%clk 0:03:03]} 6. Bg5 {[%clk 0:02:56]}  e6 {[%clk 0:03:03]} 7. f4 {[%clk 0:02:56]}  h6 {[%clk 0:03:04]} 8. Bh4 {[%clk 0:02:55]}  Qb6 {[%clk 0:03:04]} 9. a3 {[%clk 0:02:53]}  Be7 {[%clk 0:03:04]} 10. Bf2 {[%clk 0:02:53]}  Qc7 {[%clk 0:03:04]} 11. Qe2 {[%clk 0:02:52]}  b5 {[%clk 0:03:04]} 12. e5 {[%clk 0:02:44]}  dxe5 {[%clk 0:03:03]} 13. fxe5 {[%clk 0:02:44]}  Nfd7 {[%clk 0:03:03]} 14. Bg3 {[%clk 0:02:44]}  Bb7 {[%clk 0:02:43]} 15. O-O-O {[%clk 0:02:35]}  O-O {[%clk 0:02:36]} 16. Kb1 {[%clk 0:02:26]}  Nb6 {[%clk 0:02:35]} 17. Qh5 {[%clk 0:02:18]}  Bxa3 {[%clk 0:01:39]} 18. Ne4 {[%clk 0:02:04]}  Bxe4 {[%clk 0:01:36]} 19. bxa3 {[%clk 0:02:02]}  Na4 {[%clk 0:01:34]} 20. Bd3 {[%clk 0:02:00]}  Qc3 {[%clk 0:01:33]} 21. Kc1 {[%clk 0:01:53]}  Qxd4 {[%clk 0:01:25]} 0-1


[Site "https://www.chess.com"]

[Event "Titled Tuesday Blitz August 17 2021"]
[White "Lock, Gavin R"]
[Black "Shishkov, Andrei"]
[WhiteFideId "408646"]
[BlackFideId "4500563"]
[WhiteElo "2104"]
[BlackElo "2322"]
[Result "0-1"]
[Round "09"]
[TimeControl "180+1"]
[Date "2021.08.18"]
[WhiteClock "0:00:04"]
[BlackClock "0:00:07"]

1. d4 {[%clk 0:03:00]}  d5 {[%clk 0:02:59]} 2. Nf3 {[%clk 0:02:59]}  Bf5 {[%clk 0:02:58]} 3. g3 {[%clk 0:02:59]}  e6 {[%clk 0:02:59]} 4. Bg2 {[%clk 0:02:59]}  c6 {[%clk 0:02:52]} 5. c4 {[%clk 0:02:57]}  h6 {[%clk 0:02:50]} 6. Nc3 {[%clk 0:02:56]}  Nf6 {[%clk 0:02:49]} 7. Qb3 {[%clk 0:02:56]}  Qb6 {[%clk 0:02:49]} 8. c5 {[%clk 0:02:56]}  Qc7 {[%clk 0:02:43]} 9. Bf4 {[%clk 0:02:53]}  Qc8 {[%clk 0:02:44]} 10. Nd2 {[%clk 0:02:53]}  g5 {[%clk 0:02:38]} 11. Be5 {[%clk 0:02:47]}  Nbd7 {[%clk 0:02:38]} 12. e4 {[%clk 0:02:43]}  Nxe5 {[%clk 0:02:34]} 13. dxe5 {[%clk 0:02:31]}  Nxe4 {[%clk 0:02:33]} 14. Bxe4 {[%clk 0:02:24]}  dxe4 {[%clk 0:02:31]} 15. Ndxe4 {[%clk 0:02:24]}  Be7 {[%clk 0:02:08]} 16. O-O-O {[%clk 0:01:28]}  Qc7 {[%clk 0:02:07]} 17. Nd6+ {[%clk 0:01:27]}  Bxd6 {[%clk 0:01:49]} 18. exd6 {[%clk 0:00:50]}  Qd7 {[%clk 0:01:37]} 19. Qc4 {[%clk 0:00:41]}  O-O-O {[%clk 0:01:34]} 20. f3 {[%clk 0:00:38]}  h5 {[%clk 0:01:26]} 21. b4 {[%clk 0:00:34]}  a6 {[%clk 0:01:26]} 22. Kb2 {[%clk 0:00:34]}  Kb8 {[%clk 0:01:23]} 23. Rhe1 {[%clk 0:00:33]}  f6 {[%clk 0:01:19]} 24. Na4 {[%clk 0:00:27]}  e5 {[%clk 0:01:14]} 25. Nb6 {[%clk 0:00:27]}  Qe6 {[%clk 0:01:06]} 26. Qxe6 {[%clk 0:00:26]}  Bxe6 {[%clk 0:01:07]} 27. a4 {[%clk 0:00:25]}  Ka7 {[%clk 0:00:47]} 28. Kc3 {[%clk 0:00:25]}  Bf5 {[%clk 0:00:42]} 29. Rd2 {[%clk 0:00:22]}  Rhe8 {[%clk 0:00:25]} 30. Re3 {[%clk 0:00:20]}  Bg6 {[%clk 0:00:21]} 31. a5 {[%clk 0:00:20]}  e4 {[%clk 0:00:17]} 32. fxe4 {[%clk 0:00:18]}  Bxe4 {[%clk 0:00:17]} 33. Rde2 {[%clk 0:00:18]}  f5 {[%clk 0:00:18]} 34. h4 {[%clk 0:00:16]}  gxh4 {[%clk 0:00:17]} 35. gxh4 {[%clk 0:00:17]}  Rg8 {[%clk 0:00:17]} 36. Kd4 {[%clk 0:00:15]}  Rg1 {[%clk 0:00:16]} 37. Ke5 {[%clk 0:00:12]}  Rb1 {[%clk 0:00:16]} 38. Rg3 {[%clk 0:00:09]}  Rxb4 {[%clk 0:00:15]} 39. Rg7 {[%clk 0:00:08]}  Rb5 {[%clk 0:00:15]} 40. Ke6 {[%clk 0:00:04]}  Rxc5 {[%clk 0:00:13]} 41. Ke7 {[%clk 0:00:05]}  Rh8 {[%clk 0:00:11]} 42. d7 {[%clk 0:00:04]}  Re5+ {[%clk 0:00:11]} 43. Kd6 {[%clk 0:00:04]}  Rxa5 {[%clk 0:00:11]} 44. Nc8+ {[%clk 0:00:03]}  Kb8 {[%clk 0:00:11]} 45. Ne7 {[%clk 0:00:03]}  Ra1 {[%clk 0:00:09]} 46. Rf2 {[%clk 0:00:02]}  Rd1+ {[%clk 0:00:10]} 47. Ke5 {[%clk 0:00:02]}  Rxd7 {[%clk 0:00:09]} 48. Nxf5 {[%clk 0:00:03]}  Rxg7 {[%clk 0:00:08]} 49. Nxg7 {[%clk 0:00:04]}  Rg8 {[%clk 0:00:08]} 50. Ne6 {[%clk 0:00:03]}  Bd5 {[%clk 0:00:08]} 51. Nf4 {[%clk 0:00:03]}  Re8+ {[%clk 0:00:08]} 52. Kd4 {[%clk 0:00:03]}  Ka7 {[%clk 0:00:08]} 53. Nxh5 {[%clk 0:00:04]}  b6 {[%clk 0:00:09]} 54. Nf6 {[%clk 0:00:04]}  Rh8 {[%clk 0:00:08]} 55. Nxd5 {[%clk 0:00:04]}  cxd5 {[%clk 0:00:08]} 56. Kxd5 {[%clk 0:00:04]}  Rh5+ {[%clk 0:00:08]} 57. Kc6 {[%clk 0:00:03]}  a5 {[%clk 0:00:09]} 58. Rf7+ {[%clk 0:00:03]}  Ka6 {[%clk 0:00:09]} 59. Rf4 {[%clk 0:00:04]}  Rh6+ {[%clk 0:00:09]} 60. Kd5 {[%clk 0:00:04]}  Kb5 {[%clk 0:00:08]} 61. Kd4 {[%clk 0:00:04]}  a4 {[%clk 0:00:07]} 62. Kc3 {[%clk 0:00:05]}  Ka5 {[%clk 0:00:06]} 63. Kb2 {[%clk 0:00:05]}  b5 {[%clk 0:00:07]} 64. Rg4 {[%clk 0:00:04]}  Rf6 {[%clk 0:00:06]} 65. Re4 {[%clk 0:00:04]}  Rf2+ {[%clk 0:00:06]} 66. Kc3 {[%clk 0:00:05]}  Rh2 {[%clk 0:00:06]} 67. Rg4 {[%clk 0:00:04]}  Rh3+ {[%clk 0:00:06]} 68. Kb2 {[%clk 0:00:04]}  b4 {[%clk 0:00:06]} 69. Kc2 {[%clk 0:00:05]}  a3 {[%clk 0:00:06]} 70. Kb1 {[%clk 0:00:04]}  Ka4 {[%clk 0:00:07]} 71. Rg8 {[%clk 0:00:04]}  Kb3 {[%clk 0:00:07]} 72. Rg3+ {[%clk 0:00:04]}  Rxg3 {[%clk 0:00:07]} 0-1


[Site "https://www.chess.com"]

[Event "Titled Tuesday Blitz August 17 2021"]
[White "Lopez Gracia, Fernando"]
[Black "Oliveira, Silvio Eduardo"]
[WhiteFideId "2207184"]
[BlackFideId "2111560"]
[WhiteElo "2370"]
[BlackElo "2302"]
[Result "1-0"]
[Round "09"]
[TimeControl "180+1"]
[Date "2021.08.17"]
[WhiteClock "0:02:09"]
[BlackClock "0:01:43"]

1. c4 {[%clk 0:02:57]}  e6 {[%clk 0:03:00]} 2. Nf3 {[%clk 0:02:56]}  d5 {[%clk 0:03:00]} 3. e3 {[%clk 0:02:57]}  Nf6 {[%clk 0:03:00]} 4. b3 {[%clk 0:02:57]}  b6 {[%clk 0:03:01]} 5. g3 {[%clk 0:02:56]}  Bb7 {[%clk 0:03:01]} 6. Bg2 {[%clk 0:02:57]}  c5 {[%clk 0:03:00]} 7. cxd5 {[%clk 0:02:56]}  Nxd5 {[%clk 0:02:50]} 8. Bb2 {[%clk 0:02:55]}  Nd7 {[%clk 0:02:47]} 9. O-O {[%clk 0:02:55]}  N5f6 {[%clk 0:02:45]} 10. d4 {[%clk 0:02:55]}  cxd4 {[%clk 0:02:45]} 11. Nxd4 {[%clk 0:02:56]}  Bxg2 {[%clk 0:02:44]} 12. Kxg2 {[%clk 0:02:57]}  Qc7 {[%clk 0:02:44]} 13. Nc3 {[%clk 0:02:56]}  Qb7+ {[%clk 0:02:43]} 14. Qf3 {[%clk 0:02:53]}  Qxf3+ {[%clk 0:02:43]} 15. Nxf3 {[%clk 0:02:51]}  Rc8 {[%clk 0:02:42]} 16. Rac1 {[%clk 0:02:50]}  Be7 {[%clk 0:02:27]} 17. Nb5 {[%clk 0:02:49]}  O-O {[%clk 0:02:22]} 18. Nxa7 {[%clk 0:02:48]}  Rxc1 {[%clk 0:02:19]} 19. Rxc1 {[%clk 0:02:47]}  Ra8 {[%clk 0:02:19]} 20. Nc6 {[%clk 0:02:47]}  Bf8 {[%clk 0:02:15]} 21. a4 {[%clk 0:02:44]}  Nd5 {[%clk 0:02:15]} 22. Nce5 {[%clk 0:02:37]}  Nc5 {[%clk 0:02:16]} 23. Bd4 {[%clk 0:02:22]}  Nxb3 {[%clk 0:02:15]} 24. Rb1 {[%clk 0:02:22]}  Nxd4 {[%clk 0:02:15]} 25. Nxd4 {[%clk 0:02:22]}  Rxa4 {[%clk 0:02:15]} 26. Nd7 {[%clk 0:02:22]}  Rb4 {[%clk 0:02:11]} 27. Ra1 {[%clk 0:02:17]}  Nc7 {[%clk 0:01:49]} 28. Rc1 {[%clk 0:02:16]}  Bd6 {[%clk 0:01:47]} 29. Rc6 {[%clk 0:02:15]}  Ne8 {[%clk 0:01:43]} 30. Rc8 {[%clk 0:02:09]} 1-0


[Site "https://www.chess.com"]